Cogmind - Beta 16 @@@ ROGUE MODE // 2025.11.01 @ 23:34:54 Player: unq Result: Destroyed by D-53 Grenadier with Mini Grenade Launcher Performance ------------- Evolutions (0) 0 Regions Visited (2) 400 Robots Destroyed (30) 150 Value Destroyed (646) 646 Prototype IDs (0) 0 Alien Tech Used (0) 0 Bonus (0) 0 TOTAL SCORE: 1196 Bonus ------- None Cogmind --------- Core Integrity 0/250 Matter 253/300 Energy 66/250 System Corruption 0% Temperature Cool (48) Movement Rolling (105) Ox1 Location -10/Mines Parts ------- > --- POWER (1) -------- Ion Engine > --- PROPULSION (2) --- Wheel Compact Wheel > --- UTILITY (2) ------ Disposable Heat Sink High-capacity Storage Unit > --- WEAPON (2) ------- Spread Laser Light Assault Rifle > --- INVENTORY (20) --- Ion Engine Wheel Compact Wheel Compact Wheel Compact Wheel Medium Matter Pod (59) Medium Matter Pod (100) Structural Scanner Seismic Detector Seismic Detector Seismic Detector Tractor Beam Trap Extractor (0/4) Datajack Mining Laser Hammer Peak State ------------ > --- POWER ------------ Ion Engine > --- PROPULSION ------- Wheel Wheel > --- UTILITY ---------- Disposable Heat Sink High-capacity Storage Unit > --- WEAPON ----------- Medium Laser Light Assault Rifle > --- INVENTORY -------- Ion Engine Ion Engine Wheel Compact Wheel Compact Wheel Compact Wheel Compact Wheel Disposable Heat Sink Medium Matter Pod Medium Matter Pod Structural Scanner Seismic Detector Seismic Detector Seismic Detector Tractor Beam Trap Extractor Spread Laser Datajack Mining Laser Hammer [Rating: 10] Favorites ----------- Power Ion Engine Engine Ion Engine Propulsion Light Treads Treads Light Treads Wheel Wheel Utility Seismic Detector Device Seismic Detector Storage Small Storage Unit Weapon Medium Laser Energy Gun Medium Laser Ballistic Gun Assault Rifle Special Weapon Mining Laser Build | -11 -10 -10 ------- Run | Yrd Mat Min Slots Evolved . | . . . Power . | . . . Propulsion . | . . . Utility . | . . . Weapon . | . . . Parts Attached 23 | 7 14 2 Power 5 | 1 4 . Engine 5 | 1 4 . Core . | . . . Reactor . | . . . Propulsion 6 | 2 3 1 Treads 2 | 2 . . Leg . | . . . Wheel 4 | . 3 1 Hover . | . . . Flight . | . . . Utility 5 | 2 2 1 Device 3 | 1 1 1 Storage 2 | 1 1 . Processor . | . . . Hackware . | . . . Protection . | . . . Artifact . | . . . Weapon 7 | 2 5 . Energy Gun 4 | 1 3 . Energy Cannon . | . . . Ballistic Gun 2 | 1 1 . Ballistic Cannon . | . . . Launcher . | . . . Special Weapon 1 | . 1 . Impact Weapon . | . . . Slashing Weapon . | . . . Piercing Weapon . | . . . Special Melee Weapon . | . . . Unidentified Prototypes . | . . . Parts Lost 9 | . 5 4 Power 1 | . . 1 Propulsion 3 | . 2 1 Utility 1 | . . 1 Weapon 4 | . 3 1 Highest Loss Streak 4 | . 2 4 To Critical Strikes . | . . . Average Backups 9 | 1 10 19 Power . | . 1 1 Propulsion . | . . 5 Utility 5 | . 5 8 Weapon 2 | 1 2 2 Tool/Special . | . . . Unused Backups 16 | . 4 12 Power 1 | . 1 . Propulsion 4 | . 1 3 Utility 9 | . 2 7 Weapon 1 | . . 1 Tool/Special 1 | . . 1 Average Slot Usage (%) 99 | . 99 98 Engine 14 | . 14 14 Treads 20 | . 21 . Wheel 7 | . 5 28 Device 13 | . 14 12 Storage 14 | . 14 14 Energy Gun 13 | . 13 14 Ballistic Gun 10 | . 10 14 Special Weapon 4 | . 4 . Peak Build Rating 10 | 7 9 10 Average Rating 8 | 6 8 9 On Entrance 5 | . 7 9 Avg Prop Armor Cover (%) 12 | . 12 . Naked Turns . | . . . Heaviest Build 50 | 13 50 49 Greatest Support 40 | 40 40 20 Greatest Overweight (x) 4 | 3 4 2 Average Overweight (x) 1 | . 1 2 Largest Inventory Capacity 20 | 8 20 20 Average Capacity 13 | 7 13 20 Most Carried 20 | 6 20 20 Average Carried 9 | 1 10 19 Final Capacity 20 | 8 20 20 Final Carried 20 | 6 20 16 Class Distribution -------------------- 86% | Mutant 13% | Scavenger-Mutant Dominant Class ---------------- Mutant | -10/Materials Scavenger-Mutant | -10/Mines Resources | -11 -10 -10 ----------- Run | Yrd Mat Min Matter Collected 762 | 306 456 . Remotely . | . . . Salvage Created 1027 | 127 900 . Parts 61 | 13 48 . Haulers Intercepted . | . . . Recyclers Shooed 3 | . 3 . Parts Field Recycled . | . . . Retrieved Matter . | . . . Parts Self-Destructed . | . . . Prevented . | . . . Parts Restored . | . . . Kills | -11 -10 -10 ------- Run | Yrd Mat Min Combat Hostiles Destroyed 18 | . 18 . Guns 18 | . 18 . Classes Destroyed 7 | 2 5 . Worker 3 | . 3 . Builder 1 | . 1 . Tunneler 4 | 4 . . Recycler 3 | 1 2 . Watcher 1 | . 1 . Swarmer 3 | . 3 . Grunt 15 | . 15 . Best Kill Streak 7 | 4 7 . Combat Bots Only 6 | . 6 . Max Kills in Single Turn 2 | 1 2 . Gunslinging . | . . . Exploded . | . . . Melee . | . . . Uniques/NPCs Destroyed . | . . . Combat | -11 -10 -10 -------- Run | Yrd Mat Min Hostile Shots Fired 90 | . 78 12 Missed 18 | . 18 . Hits 72 | . 60 12 Projectile 72 | . 60 12 AOE 12 | . . 12 Damage Taken 1190 | . 697 493 Core 256 | . 52 204 Absorbed by Shields . | . . . Core Remaining (%) 100 | 100 . . Volleys Fired 98 | 12 79 7 Largest 2 | 2 2 2 Hottest 120 | 70 120 85 Shots Fired 176 | 24 138 14 Gun 157 | 24 119 14 Cannon . | . . . Launcher . | . . . Special 19 | . 19 . Kinetic 62 | 12 43 7 Thermal 84 | 12 65 7 Explosive . | . . . Electromagnetic 30 | . 30 . Robot Hit Streak 10 | 3 10 4 Robot Miss Streak 5 | 3 5 4 Penetration Max . | . . . Secondary Targets 4 | . 4 . Max Gunslinging Chain 1 | . 1 . Shots Hit Robots 99 | 13 78 8 Core Hits 65 | 6 54 5 Critical Kills . | . . . Critical Parts Destroyed . | . . . Critical Strikes 3 | . 3 . Burn 1 | . 1 . Corrupt 2 | . 2 . Melee Attacks . | . . . Impact . | . . . Slashing . | . . . Piercing . | . . . Sneak Attacks . | . . . Combat Hostiles . | . . . Follow-up Attacks . | . . . Damage Inflicted 1250 | 164 1002 84 Guns 1243 | 164 995 84 Cannons . | . . . Explosions . | . . . Melee . | . . . Ramming 7 | . 7 . Kinetic 401 | 77 297 27 Thermal 577 | 87 433 57 Explosive . | . . . Electromagnetic 265 | . 265 . Impact . | . . . Slashing . | . . . Piercing . | . . . Highest Corruption . | . . . Average Corruption . | . . . Corruption Purged . | . . . Corruption Blocked . | . . . Overload Shots . | . . . Overflow Damage . | . . . Projectiles . | . . . Explosions . | . . . Melee . | . . . Knockbacks . | . . . Impact . | . . . Kinetic . | . . . Secondary . | . . . Self-Inflicted Damage . | . . . Shots . | . . . Rammed 1 | . 1 . Targets Rammed 1 | . 1 . Kicked . | . . . Crushed . | . . . Highest Temperature 199 | 56 199 90 Average Temperature 51 | 24 54 54 Received Heat Transfer 375 | . 375 . Siege Activations . | . . . Martial Activations . | . . . Shielding Activations . | . . . Robots Disrupted . | . . . Combat Hostiles . | . . . Robots Corrupted . | . . . Combat Hostiles . | . . . Parts Fried 1 | . 1 . Impact Corruptions . | . . . Robots Melted . | . . . Combat Hostiles . | . . . Parts Melted 1 | . 1 . Heat Transferred 1520 | 259 1142 119 Parts Sabotaged . | . . . Parts Stolen . | . . . Parts Stripped . | . . . Power Chain Reactions . | . . . Alert | -11 -10 -10 ------- Run | Yrd Mat Min Maximum Alert Level . | . . . Low Security (%) 100 | 100 100 100 Level 1 . | . . . Level 2 . | . . . Level 3 . | . . . Level 4 . | . . . Level 5 . | . . . High Security . | . . . Max Security . | . . . Peak Influence 188 | 10 188 44 Initial 44 | . . 44 Average 50 | 1 57 29 Influence Increases 655 | 25 630 . Destroy 0b10 Robot/C 360 | . 360 . Destroy 0b10 Robot/NC 60 | 25 35 . Destroy Leader 72 | . 72 . Successful Hack 26 | . 26 . Select Force Hacks 60 | . 60 . Disable Machine 15 | . 15 . Destroy Structure 17 | . 17 . Lose Combat Pursuer 45 | . 45 . Influence Decreases 655 | 25 515 115 Entered New Map 71 | . . 71 Time Decay 360 | 25 315 20 Lost Part 74 | . 50 24 Purge Threat 150 | . 150 . Squads Dispatched 6 | . 6 . Investigation 4 | . 4 . Extermination . | . . . Reinforcement 2 | . 2 . Assault . | . . . Garrison . | . . . Intercept . | . . . Searches Triggered . | . . . Construction Impeded . | . . . Haulers Reinforced . | . . . Active Scanning Responses . | . . . Cargo Convoy Interrupts . | . . . Stealth | -11 -10 -10 --------- Run | Yrd Mat Min Distress Signals 2 | . 2 . Communications Jammed . | . . . Distress Signals . | . . . Times Spotted 31 | . 28 3 Peak Tracking Total 6 | . 6 2 Tactical Retreats 1 | . 1 . Traps | -11 -10 -10 ------- Run | Yrd Mat Min Traps Triggered 2 | . 2 . Indirectly . | . . . Trap Hack Attempts . | . . . Triggered . | . . . Disarmed . | . . . Reprogrammed . | . . . Reused . | . . . Traps Extracted . | . . . Installed . | . . . Triggered . | . . . Machines | -11 -10 -10 ---------- Run | Yrd Mat Min Machines Disabled 1 | . 1 . Max in Single Turn 1 | . 1 . Machines Repaired . | . . . Machines Dismantled . | . . . Machines Sabotaged . | . . . Overloaded Fab Kills . | . . . Hacking | -11 -10 -10 --------- Run | Yrd Mat Min Machines Accessed 8 | . 8 . Terminals 6 | . 6 . Fabricators . | . . . Repair Stations . | . . . Recycling Units 2 | . 2 . Scanalyzers . | . . . Garrison Access . | . . . Total Hacks 26 | . 26 . Successful 14 | . 14 . Failed 12 | . 12 . Catastrophic 1 | . 1 . Database Lockouts . | . . . Manual 17 | . 17 . Terminals 20 | . 20 . Fabricators . | . . . Repair Stations . | . . . Recycling Units 6 | . 6 . Scanalyzers . | . . . Garrison Access . | . . . Terminal Hacks 3 | . 3 . Part Schematic 1 | . 1 . Unreport Threat 1 | . 1 . Locate Traps 1 | . 1 . Fabricator Hacks . | . . . Repair Station Hacks . | . . . Recycling Unit Hacks 1 | . 1 . Retrieve Components 1 | . 1 . Scanalyzer . | . . . Garrison Access Hacks . | . . . Unauthorized Hacks 10 | . 10 . Terminals 8 | . 8 . Botnet 3 | . 3 . Skim 5 | . 5 . Fabricators . | . . . Repair Stations . | . . . Recycling Units 2 | . 2 . Tunnel 2 | . 2 . Scanalyzers . | . . . Garrison Access . | . . . Data Cores Recovered . | . . . Used . | . . . Hacking Detections 7 | . 7 . Full Trace Events . | . . . Feedback Events . | . . . Feedback Blocked . | . . . Robot Schematics Acquired . | . . . Robots Built . | . . . Authchips . | . . . Time . | . . . Total Robot Build Rating . | . . . Part Schematics Acquired 1 | . 1 . Parts Built . | . . . Authchips . | . . . Time . | . . . Total Part Build Rating . | . . . Part Studies Acquired . | . . . Parts Repaired . | . . . Time . | . . . Parts Recycled . | . . . Recycled Matter . | . . . Retrieved Matter . | . . . Retrieved Components 10 | . 10 . Parts Scanalyzed . | . . . Part Schematics Acquired . | . . . Parts Damaged . | . . . Bothacking | -11 -10 -10 ------------ Run | Yrd Mat Min Used RIF Installer . | . . . Robots Hacked . | . . . Non-combat . | . . . Combat . | . . . Robot Hacks Applied . | . . . Relay Couplers Released . | . . . Fabnet Peak Effective % . | . . . Robots Rewired . | . . . Allies Hacked . | . . . Hacks Repelled . | . . . Allies | -11 -10 -10 -------- Run | Yrd Mat Min Total Allies . | . . . Largest Group . | . . . Highest-Rated Group . | . . . Highest-Rated Ally . | . . . Total Orders . | . . . Ally Attacks . | . . . Total Damage . | . . . Kills . | . . . Allies Corrupted . | . . . Allies Melted . | . . . Intel | -11 -10 -10 ------- Run | Yrd Mat Min Active Infowar (turns) 1184 | 85 1062 37 Seismic 1184 | 85 1062 37 Robot Analysis Total . | . . . Derelict Logs Recovered . | . . . Drone Launches . | . . . Drone Recoveries . | . . . Exploration | -11 -10 -10 ------------- Run | Yrd Mat Min Turns Passed 1699 | 176 1461 62 Spaces Moved 762 | 80 650 32 Core 11 | 11 . . Treads 502 | 69 433 . Legs . | . . . Wheels 249 | . 217 32 Hover . | . . . Flight . | . . . Fastest Speed 50 | 50 110 110 Average Speed 156 | 155 158 110 Slowest Speed 240 | 200 240 110 Overloaded Moves . | . . . Propulsion Burnouts . | . . . Robots Hopped . | . . . Potential Cave-ins . | . . . Cave-ins Triggered . | . . . Exploration Rate (%) 36 | 5 95 8 Regions Visited 2 Branch Regions 1 Pre-discovered Areas 4 | . 4 . Known Exits Taken . | . . . Unknown Exits Taken 2 | 1 1 . Scrap Searched . | . . . Spaces Dug 15 | . 15 . Terrain Destroyed 18 | . 18 . Melee . | . . . Projectile 18 | . 18 . AOE . | . . . Terrain Rammed . | . . . Walls Destroyed . | . . . Machines Disabled . | . . . Actions | -11 -10 -10 --------- Run | Yrd Mat Min Total 1049 | 104 900 45 Wait 109 | . 109 . Move 760 | 79 649 32 Hop . | . . . Pick Up 27 | 6 21 . Fast Attach 10 | 7 3 . Attach 8 | . 4 4 Detach 2 | . 2 . Swap 23 | . 21 2 Drop 11 | . 11 . Fire 98 | 12 79 7 Melee . | . . . Ram . | . . . Kick . | . . . Crush 1 | . 1 . Escape Stasis . | . . . Rewire . | . . . Trap . | . . . Miscellaneous . | . . . Route ------- -11/Scrapyard -10/Materials (discovered 5 exits: *Mat x3 / [*Min] / Sub) -10/Mines (discovered 2 exits: Mat x2) History --------- Turn | Location | Event 24 | -11/Scrapyard | Discovered new exit (range 15) 177 | -11/Scrapyard | Entered Materials 301 | -10/Materials | Build established: Mutant 782 | -10/Materials | Discovered new exit (range 9) 996 | -10/Materials | Learned location of Recycling (-9) 1105 | -10/Materials | Identified exit to Materials 1122 | -10/Materials | Identified exit to Subcaves 1131 | -10/Materials | Learned Storage stockpile data 1477 | -10/Materials | Discovered new exit (range 14) 1638 | -10/Materials | Entered Mines 1666 | -10/Mines | Assembled infested the area 1671 | -10/Mines | Assisted by a Guerilla fighting off Assembled 1695 | -10/Mines | Core integrity fell below 50% 1697 | -10/Mines | Core integrity fell below 20% 1700 | -10/Mines | Destroyed by D-53 Grenadier with Mini Grenade Launcher Last Messages --------------- 01678_ D-53 Grenadier unfolds itself. 01680_ The unstable cave ceiling collapses. 01684_ R-06 Scavenger destroyed. 01686_ R-06 Scavenger collects Lgt. Ion Engine. 01687_ The unstable cave ceiling collapses. 01688_ Disposable Heat Sink destroyed. 01690_ R-06 Scavenger collects Com. Wheel. 01690_ Ion Engine destroyed. 01690_ Med. Laser destroyed. 01690_ R-06 Scavenger destroyed. 01691_ The unstable cave ceiling collapses. 01692_ Wheel destroyed. 01693_ U-05 Engineer builds a Wall. 01697_ U-05 Engineer lays Concrete. 01698_ U-05 Engineer builds a Wall. 01700_ The unstable cave ceiling collapses. 01700_ K5-5HH(h): "I'll hold them off! Go on ahead or try to find another way!" 01700_ HV Slug penetrates Earth. 01700_ HV Slug penetrates Wall. Map ----- +----------------------------------------------------+ | ???????????????????????????????????????? | | ???????????????????????????????????????? | | ???????????????????????????????????????? | | ???????????????????????????????????????? | | ???????????????????????? ???????????? | | ??????????????????????# ???????????? | | ??????????????????????? ???????????? | | ?????????????????????? ???????????? | | ??????????????????????? ???????????? | | ??????????????????????? ???????????? | | ???????????????????? """ ???????????? | | ?????????????????